fUSD/lending_fUSD_20241031
["ID","MTS","AMOUNT","RATE_DAILY","PERIOD"]
[341106976,1730384125050,-539.21481304,0.00054794,120]
[341106977,1730384125076,-500.0,0.00054794,120]
[341106978,1730384125103,-500.0,0.00054794,120]
[341106979,1730384125128,-300.0,0.00054794,120]
[341106980,1730384125152,-506.99248409,0.00054794,120]
[341106981,1730384125176,-500.0,0.00054794,120]
[341106982,1730384125200,-504.67433389,0.00054794,120]
[341106983,1730384125223,-504.27813161,0.00054794,120]
[341106984,1730384125247,-504.07336125,0.00054794,120]
[341106985,1730384125271,-175.76817926,0.00054794,120]
[341106986,1730384125294,-183.23182074,0.00054794,120]
[341106987,1730384125319,-500.07851966,0.00054794,120]
[341106988,1730384125343,-420.88849419,0.00054794,120]
[341106989,1730384125370,-606.85503001,0.00054794,120]
[341106990,1730384125394,-557.32,0.00054794,120]
[341106991,1730384125418,-228.03119902,0.00054794,120]
[341106992,1730384125442,-645.93170257,0.00054794,120]
[341106993,1730384125468,-187.4,0.00054794,120]
[341106994,1730384125492,-500.0,0.00054794,120]
[341106995,1730384125515,-498.92515,0.00054794,120]
[341106996,1730384125539,-500.0,0.00054794,120]
[341106997,1730384125563,-2000.0,0.00054794,120]
[341106998,1730384125586,-535.92,0.00054794,120]
[341106999,1730384125613,-500.0,0.00054794,120]
[341107000,1730384125638,-500.0,0.00054794,120]
[341107001,1730384125662,-500.0,0.00054794,120]
[341107002,1730384125687,-10222.56,0.00054794,120]
[341107003,1730384125712,-500.0,0.00054794,120]
[341107004,1730384125735,-600.0,0.00054794,120]
[341107005,1730384125759,-500.0,0.00054794,120]
[341107006,1730384125786,-500.0,0.00054794,120]
[341107007,1730384125810,-500.0,0.00054794,120]
[341107008,1730384125835,-500.0,0.00054794,120]
[341107009,1730384125862,-500.0,0.00054794,120]
[341107010,1730384125887,-1263.05,0.00054794,120]
[341107011,1730384125911,-500.0,0.00054794,120]
[341107012,1730384125938,-500.0,0.00054794,120]
[341107013,1730384125962,-500.0,0.00054794,120]
[341107014,1730384125987,-500.0,0.00054794,120]
[341107015,1730384126012,-500.0,0.00054794,120]
[341107016,1730384126035,-165.78810127,0.00054794,120]
[341107017,1730384126058,-630.17,0.00054794,120]
[341107018,1730384126081,-514.86657391,0.00054794,120]
[341107019,1730384126107,-191.99631859,0.00054794,120]
[341107020,1730384126130,-500.0,0.00054794,120]
[341107021,1730384126154,-500.0,0.00054794,120]
[341107022,1730384126177,-569.48784606,0.00054794,120]
[341107023,1730384126200,-500.0,0.00054794,120]
[341107024,1730384126223,-232.78582874,0.00054794,120]
[341107025,1730384126246,-594.40085746,0.00054794,120]
[341107026,1730384126269,-500.0,0.00054794,120]
[341107027,1730384126292,-500.0,0.00054794,120]
[341107028,1730384126314,-500.0,0.00054794,120]
[341107029,1730384126338,-500.0,0.00054794,120]
[341107030,1730384126363,-259.62365895,0.00054794,120]
[341107031,1730384126386,-500.0,0.00054794,120]
[341107032,1730384126410,-569.0,0.00054794,120]
[341107033,1730384126433,-500.0,0.00054794,120]
[341107034,1730384126459,-500.0,0.00054794,120]
[341107035,1730384126482,-500.0,0.00054794,120]
[341107036,1730384126505,-500.0,0.00054794,120]
[341107037,1730384126528,-500.0,0.00054794,120]
[341107038,1730384126552,-500.0,0.00054794,120]
[341107039,1730384126575,-588.95658447,0.00054794,120]
[341107040,1730384126599,-500.0,0.00054794,120]
[341107041,1730384126622,-500.0,0.00054794,120]
[341107042,1730384126646,-500.0,0.00054794,120]
[341107043,1730384126671,-260.84011516,0.00054794,120]
[341107044,1730384126694,-460.10002704,0.00054794,120]
[341107045,1730384126718,-3436.22,0.00054794,120]
[341107046,1730384126742,-500.0,0.00054794,120]
[341107047,1730384126765,-500.0,0.00054794,120]
[341107048,1730384126791,-500.0,0.00054794,120]
[341107049,1730384126814,-500.0,0.00054794,120]
[341107050,1730384126838,-500.0,0.00054794,120]
[341107051,1730384126864,-500.0,0.00054794,120]
[341107052,1730384126888,-500.0,0.00054794,120]
[341107053,1730384126913,-500.0,0.00054794,120]
[341107054,1730384126940,-500.0,0.00054795,120]
[341107055,1730384126963,-500.0,0.00054795,120]
[341107056,1730384126986,-500.0,0.00054795,120]
[341107057,1730384127009,-500.0,0.00054795,120]
[341107058,1730384127035,-500.0,0.00054795,120]
[341107059,1730384127058,-267607.94986579,0.000548,120]
[341107060,1730384137536,-398.91766221,0.00052565,30]
[341107061,1730384137563,-151.0,0.00053494,120]
[341107062,1730384137591,-151.0,0.00053535,120]
[341107063,1730384137619,-464.46,0.000536,30]
[341107064,1730384137644,-151.0,0.00053608,120]
[341107065,1730384137669,-151.0,0.00053638,120]
[341107066,1730384137694,-151.0,0.0005369,120]
[341107067,1730384137720,-151.0,0.00053762,120]
[341107068,1730384137744,-151.0,0.00053769,120]
[341107069,1730384137769,-151.0,0.00053773,120]
[341107070,1730384137793,-1249.0,0.00053933,120]
[341107071,1730384137817,-629.0,0.00053933,120]
[341107072,1730384137841,-13579.0,0.00053933,120]
[341107073,1730384137868,-200.0,0.00054,120]
[341107074,1730384137893,-500.0,0.00054794,120]
[341107075,1730384137918,-500.0,0.00054794,120]
[341107076,1730384137947,-500.0,0.00054794,120]
[341107077,1730384137973,-462.57242948,0.00054794,120]
[341107078,1730384137998,-500.0,0.00054795,120]
[341107079,1730384138024,-232392.05013421,0.000548,120]
[341107080,1730384138049,-200.0,0.000548,120]
[341107081,1730384138073,-150.0,0.00054946,120]
[341107082,1730384138097,-156.398,0.00054946,120]
[341107083,1730384138132,-150.0,0.00054946,120]
[341107084,1730384138156,-150.0,0.00054946,120]
[341107085,1730384138179,-150.798,0.00054946,120]
[341107086,1730384138203,-1000.0,0.00054999,120]
[341107087,1730384138226,-10754.56656118,0.00055,120]
[341107088,1730384138251,-17500.0,0.00055,30]
[341107089,1730384138275,-10000.0,0.00055,60]
[341107090,1730384138300,-12225.39441787,0.00055,120]
[341107091,1730384138323,-3346.597,0.00055,30]
[341107092,1730384138347,-12179.952,0.00055,120]
[341107093,1730384138379,-256.9,0.00055,45]
[341107094,1730384138402,-2102.08,0.00055068,120]
[341107095,1730384138427,-261.91,0.00055068,120]
[341107096,1730384138451,-500.0,0.00055068,120]
[341107097,1730384138476,-322.64,0.00055068,120]
[341107098,1730384138501,-497.70061996,0.00055068,120]
[341107099,1730384138525,-557.32,0.00055068,120]
[341107100,1730384138550,-500.0,0.00055068,120]
[341107101,1730384138576,-500.0,0.00055068,120]
[341107102,1730384138603,-2000.0,0.00055068,120]
[341107103,1730384138628,-535.92,0.00055068,120]
[341107104,1730384138652,-500.0,0.00055068,120]
[341107105,1730384138676,-500.0,0.00055068,120]
[341107106,1730384138702,-10222.56,0.00055068,120]
[341107107,1730384138726,-500.0,0.00055068,120]
[341107108,1730384138750,-205.41,0.00055068,120]
[341107109,1730384138775,-500.0,0.00055068,120]
[341107110,1730384138800,-263.43,0.00055068,120]
[341107111,1730384138825,-1263.05,0.00055068,120]
[341107112,1730384138853,-507.798601,0.00055068,120]
[341107113,1730384138879,-500.0,0.00055068,120]
[341107114,1730384138904,-500.0,0.00055068,120]
[341107115,1730384138929,-630.17,0.00055068,120]
[341107116,1730384138960,-500.0,0.00055068,120]
[341107117,1730384138986,-500.0,0.00055068,120]
[341107118,1730384139011,-500.0,0.00055068,120]
[341107119,1730384139039,-500.0,0.00055068,120]
[341107120,1730384139064,-436.24338516,0.00055068,120]
[341107121,1730384139087,-500.0,0.00055068,120]
[341107122,1730384139115,-500.0,0.00055068,120]
[341107123,1730384139141,-500.0,0.00055068,120]
[341107124,1730384139166,-500.0,0.00055068,120]
[341107125,1730384139193,-3436.22,0.00055068,120]
[341107126,1730384139219,-800.0,0.00055171,120]
[341107127,1730384139244,-999.0,0.00055205,120]
[341107128,1730384139270,-192.26,0.00055299,120]
[341107129,1730384139294,-2102.08,0.00055342,120]
[341107130,1730384139318,-500.0,0.00055342,120]
[341107131,1730384139343,-557.32,0.00055342,120]
[341107132,1730384139368,-529.56694804,0.00055342,120]
[341107133,1730384139392,-500.0,0.00055342,120]
[341107134,1730384139417,-2000.0,0.00055342,120]
[341107135,1730384139442,-535.92,0.00055342,120]
[341107136,1730384139467,-500.0,0.00055342,120]
[341107137,1730384139492,-219.07927696,0.00055342,120]
[341107138,1730384139517,-10222.56,0.00055342,120]
[341107139,1730384139658,-400.24427698,0.00055342,120]
[341107140,1730384139683,-500.0,0.00055342,120]
[341107141,1730384139708,-1263.05,0.00055342,120]
[341107142,1730384139733,-500.0,0.00055342,120]
[341107143,1730384139759,-385.05380484,0.00055342,120]
[341107144,1730384139782,-630.17,0.00055342,120]
[341107145,1730384139807,-500.0,0.00055342,120]
[341107146,1730384139832,-430.16824873,0.00055342,120]
[341107147,1730384139858,-500.0,0.00055342,120]
[341107148,1730384139885,-592.97,0.00055342,120]
[341107149,1730384139909,-500.0,0.00055342,120]
[341107150,1730384139935,-500.0,0.00055342,120]
[341107151,1730384139962,-500.0,0.00055342,120]
[341107152,1730384139987,-500.0,0.00055342,120]
[341107153,1730384140015,-3436.22,0.00055342,120]
[341107154,1730384140038,-464.46,0.000556,60]
[341107155,1730384140062,-2102.08,0.00055616,120]
[341107156,1730384140086,-500.0,0.00055616,120]
[341107157,1730384140113,-557.32,0.00055616,120]
[341107158,1730384140140,-500.0,0.00055616,120]
[341107159,1730384140163,-2000.0,0.00055616,120]
[341107160,1730384140187,-535.92,0.00055616,120]
[341107161,1730384140209,-500.0,0.00055616,120]
[341107162,1730384140234,-10222.56,0.00055616,120]
[341107163,1730384140257,-500.0,0.00055616,120]
[341107164,1730384140281,-1263.05,0.00055616,120]
[341107165,1730384140305,-500.0,0.00055616,120]
[341107166,1730384140331,-630.17,0.00055616,120]
[341107167,1730384140360,-501.43726898,0.00055616,120]
[341107168,1730384140383,-500.0,0.00055616,120]
[341107169,1730384140406,-500.0,0.00055616,120]
[341107170,1730384140429,-500.0,0.00055616,120]
[341107171,1730384140455,-500.0,0.00055616,120]
[341107172,1730384140481,-500.0,0.00055616,120]
[341107173,1730384140508,-3436.22,0.00055616,120]
[341107174,1730384140534,-1503.75,0.00055792,30]
[341107175,1730384140559,-2102.08,0.0005589,120]
[341107176,1730384140586,-557.32,0.0005589,120]
[341107177,1730384140616,-500.0,0.0005589,120]
[341107178,1730384140640,-2000.0,0.0005589,120]
[341107179,1730384140664,-535.92,0.0005589,120]
[341107180,1730384140689,-500.0,0.0005589,120]
[341107181,1730384140714,-10222.56,0.0005589,120]
[341107182,1730384140738,-500.0,0.0005589,120]
[341107183,1730384140763,-1263.05,0.0005589,120]
[341107184,1730384140787,-500.0,0.0005589,120]
[341107185,1730384140815,-999.0,0.0005589,120]
[341107186,1730384140842,-630.17,0.0005589,120]
[341107187,1730384140871,-500.0,0.0005589,120]
[341107188,1730384140894,-500.0,0.0005589,120]
[341107189,1730384140918,-500.0,0.0005589,120]
[341107190,1730384140944,-500.0,0.0005589,120]
[341107191,1730384140970,-500.0,0.0005589,120]
[341107192,1730384140995,-3436.22,0.0005589,120]
[341107193,1730384141021,-1000.0,0.00055999,120]
[341107194,1730384141045,-5000.0,0.00056,120]
[341107195,1730384141068,-5000.0,0.00056,120]
[341107196,1730384141092,-5000.0,0.00056,120]
[341107197,1730384141117,-1584.47859127,0.00056,120]
[341107198,1730384141140,-2000.0,0.00056,120]
[341107199,1730384141163,-200.0,0.00056,120]
[341107200,1730384141187,-18365.20724197,0.00056,120]
[341107201,1730384141211,-1022.0,0.00056,120]
[341107202,1730384141233,-5907.0,0.00056107,120]
[341107203,1730384141259,-150.0,0.00056107,120]
[341107204,1730384141284,-2102.08,0.00056164,120]
[341107205,1730384141307,-557.32,0.00056164,120]
[341107206,1730384141330,-500.0,0.00056164,120]
[341107207,1730384141357,-2000.0,0.00056164,120]
[341107208,1730384141380,-535.92,0.00056164,120]
[341107209,1730384141404,-500.0,0.00056164,120]
[341107210,1730384141430,-10222.56,0.00056164,120]
[341107211,1730384141455,-500.0,0.00056164,120]
[341107212,1730384141481,-1263.05,0.00056164,120]
[341107213,1730384141507,-500.0,0.00056164,120]
[341107214,1730384141533,-630.17,0.00056164,120]
[341107215,1730384141559,-609.70051476,0.00056164,120]
[341107216,1730384141585,-497.48934018,0.00056164,120]
[341107217,1730384141615,-500.0,0.00056164,120]
[341107218,1730384141641,-500.0,0.00056164,120]
[341107219,1730384141664,-500.0,0.00056164,120]
[341107220,1730384141690,-3436.22,0.00056164,120]
[341107221,1730384141714,-731.25,0.000562,60]
[341107222,1730384141738,-500.0,0.00056257,120]
[341107223,1730384141761,-150.0,0.00056289,120]
[341107224,1730384141784,-2102.08,0.00056438,120]
[341107225,1730384141808,-557.32,0.00056438,120]
[341107226,1730384141831,-208.74226761,0.00056438,120]
[341107227,1730384141858,-2000.0,0.00056438,120]
[341107228,1730384141882,-535.92,0.00056438,120]
[341107229,1730384141905,-500.0,0.00056438,120]
[341107230,1730384141929,-10222.56,0.00056438,120]
[341107231,1730384141956,-500.0,0.00056438,120]
[341107232,1730384141985,-1263.05,0.00056438,120]
[341107233,1730384142011,-500.0,0.00056438,120]
[341107234,1730384142036,-630.17,0.00056438,120]
[341107235,1730384142061,-500.0,0.00056438,120]
[341107236,1730384142086,-500.0,0.00056438,120]
[341107237,1730384142111,-500.0,0.00056438,120]
[341107238,1730384142137,-3436.22,0.00056438,120]
[341107239,1730384142160,-1853.0,0.0005648,120]
[341107240,1730384142185,-3369.0,0.0005648,120]
[341107241,1730384142211,-1254.0,0.0005648,120]
[341107242,1730384142335,-2902.0,0.0005648,120]
[341107243,1730384142360,-807.0,0.0005648,120]
[341107244,1730384142385,-999.0,0.00056575,120]
[341107245,1730384142408,-150.0,0.000567,74]
[341107246,1730384142434,-140647.96107803,0.00056711,30]
[341107247,1730384142459,-263734.18910929,0.00056711,30]
[341107248,1730384142483,-2102.08,0.00056712,120]
[341107249,1730384142508,-557.32,0.00056712,120]
[341107250,1730384142533,-2000.0,0.00056712,120]
[341107251,1730384142560,-535.92,0.00056712,120]
[341107252,1730384142587,-500.0,0.00056712,120]
[341107253,1730384142614,-10222.56,0.00056712,120]
[341107254,1730384142639,-500.0,0.00056712,120]
[341107255,1730384142664,-1263.05,0.00056712,120]
[341107256,1730384142695,-500.0,0.00056712,120]
[341107257,1730384142720,-630.17,0.00056712,120]
[341107258,1730384142744,-500.0,0.00056712,120]
[341107259,1730384142768,-500.0,0.00056712,120]
[341107260,1730384142796,-500.0,0.00056712,120]
[341107261,1730384142822,-3436.22,0.00056712,120]
[341107262,1730384142846,-451.0,0.00056933,120]
[341107263,1730384142872,-1154.0,0.00056933,120]
[341107264,1730384142896,-1249.0,0.00056933,120]
[341107265,1730384142920,-283.598,0.00056933,120]
[341107266,1730384142946,-13579.0,0.00056933,120]
[341107267,1730384142970,-2102.08,0.00056986,120]
[341107268,1730384142994,-557.32,0.00056986,120]
[341107269,1730384143017,-2000.0,0.00056986,120]
[341107270,1730384143045,-535.92,0.00056986,120]
[341107271,1730384143069,-500.0,0.00056986,120]
[341107272,1730384143093,-4399.09522129,0.00056986,120]
[341107273,1730384148175,-1000.0,0.00047934,120]
[341107274,1730384148213,-1983.0,0.00053933,120]
[341107275,1730384148239,-500.0,0.00054794,120]
[341107276,1730384148264,-500.0,0.00054794,120]
[341107277,1730384148291,-297.28720943,0.00054799,120]
[341107278,1730384148318,-500.0,0.00055068,120]
[341107279,1730384148343,-150.0,0.00055299,120]
[341107280,1730384148369,-500.0,0.00055342,120]
[341107281,1730384148393,-264.65256298,0.00055616,120]
[341107282,1730384148419,-1983.0,0.00056933,120]
[341107283,1730384148444,-5823.46477871,0.00056986,120]
[341107284,1730384148469,-500.0,0.00056986,120]
[341107285,1730384148496,-1263.05,0.00056986,120]
[341107286,1730384148522,-500.0,0.00056986,120]
[341107287,1730384148547,-630.17,0.00056986,120]
[341107288,1730384148571,-500.0,0.00056986,120]
[341107289,1730384148596,-500.0,0.00056986,120]
[341107290,1730384148624,-300.0,0.00056986,120]
[341107291,1730384148649,-3436.22,0.00056986,120]
[341107292,1730384148673,-1000.0,0.00056999,120]
[341107293,1730384148698,-2000.0,0.00057,120]
[341107294,1730384148725,-999.0,0.00057259,120]
[341107295,1730384148751,-557.32,0.0005726,120]
[341107296,1730384148777,-2000.0,0.0005726,120]
[341107297,1730384148805,-535.92,0.0005726,120]
[341107298,1730384148830,-500.0,0.0005726,120]
[341107299,1730384148856,-10222.56,0.0005726,120]
[341107300,1730384148893,-500.0,0.0005726,120]
[341107301,1730384148921,-1263.05,0.0005726,120]
[341107302,1730384148951,-479.1018,0.0005726,120]
[341107303,1730384148977,-630.17,0.0005726,120]
[341107304,1730384149005,-500.0,0.0005726,120]
[341107305,1730384149033,-197.58977861,0.0005726,120]
[341107306,1730384149062,-3436.22,0.0005726,120]
[341107307,1730384149089,-161.76,0.00057396,120]
[341107308,1730384149124,-557.32,0.00057534,120]
[341107309,1730384149150,-1000.0,0.00057534,120]
[341107310,1730384149176,-535.92,0.00057534,120]
[341107311,1730384149200,-368.00037407,0.00057534,120]
[341107312,1730384149225,-10222.56,0.00057534,120]
[341107313,1730384149250,-500.0,0.00057534,120]
[341107314,1730384149275,-1263.05,0.00057534,120]
[341107315,1730384149299,-630.17,0.00057534,120]
[341107316,1730384149324,-500.0,0.00057534,120]
[341107317,1730384149351,-3436.22,0.00057534,120]
[341107318,1730384149380,-464.46,0.000576,60]
[341107319,1730384149405,-500.0,0.0005769,120]
[341107320,1730384149431,-557.32,0.00057808,120]
[341107321,1730384149457,-535.92,0.00057808,120]
[341107322,1730384149589,-10222.56,0.00057808,120]
[341107323,1730384149617,-500.0,0.00057808,120]
[341107324,1730384149643,-1263.05,0.00057808,120]
[341107325,1730384149668,-630.17,0.00057808,120]
[341107326,1730384149694,-182.200001,0.00057808,120]
[341107327,1730384149721,-3436.22,0.00057808,120]
[341107328,1730384149747,-999.0,0.00057944,120]
[341107329,1730384149772,-150.0,0.00057946,120]
[341107330,1730384149797,-150.0,0.00057946,120]
[341107331,1730384149822,-150.0,0.00057946,120]
[341107332,1730384149847,-1000.0,0.00057999,120]
[341107333,1730384149877,-50000.0,0.00058,48]
[341107334,1730384149903,-1581.45274598,0.00058,120]
[341107335,1730384149927,-3787.95736077,0.00058,120]
[341107336,1730384149958,-400.0,0.00058,120]
[341107337,1730384149986,-557.32,0.00058082,120]
[341107338,1730384150011,-535.92,0.00058082,120]
[341107339,1730384150038,-10222.56,0.00058082,120]
[341107340,1730384150062,-500.0,0.00058082,120]
[341107341,1730384150089,-1263.05,0.00058082,120]
[341107342,1730384150118,-630.17,0.00058082,120]
[341107343,1730384150146,-3436.22,0.00058082,120]
[341107344,1730384150172,-731.25,0.000581,60]
[341107345,1730384150197,-12977.59,0.00058142,120]
[341107346,1730384150221,-12977.59,0.00058142,120]
[341107347,1730384150246,-12977.59,0.00058142,120]
[341107348,1730384150272,-12977.59,0.00058142,120]
[341107349,1730384150297,-557.32,0.00058356,120]
[341107350,1730384150322,-535.92,0.00058356,120]
[341107351,1730384150349,-10222.56,0.00058356,120]
[341107352,1730384150377,-500.0,0.00058356,120]
[341107353,1730384150401,-1263.05,0.00058356,120]
[341107354,1730384150425,-630.17,0.00058356,120]
[341107355,1730384150449,-3436.22,0.00058356,120]
[341107356,1730384150473,-12977.59,0.00058415,120]
[341107357,1730384150496,-12977.59,0.00058415,120]
[341107358,1730384150521,-410.415,0.00058548,115]
[341107359,1730384150544,-428.16654046,0.00058576,30]
[341107360,1730384150569,-999.0,0.00058629,120]
[341107361,1730384150594,-557.32,0.0005863,120]
[341107362,1730384150621,-535.92,0.0005863,120]
[341107363,1730384150646,-10222.56,0.0005863,120]
[341107364,1730384150670,-554.89,0.0005863,120]
[341107365,1730384150695,-1263.05,0.0005863,120]
[341107366,1730384150719,-630.17,0.0005863,120]
[341107367,1730384150744,-3436.22,0.0005863,120]
[341107368,1730384150768,-12977.59,0.00058689,120]
[341107369,1730384150791,-12977.59,0.00058689,120]
[341107370,1730384150814,-2383.16612057,0.0005869,120]
[341107371,1730384150838,-698099.58572742,0.0005869,120]
[341107372,1730384163328,-156.77778726,0.00050397,120]
[341107373,1730384163355,-156.77778726,0.000528,120]
[341107374,1730384163388,-557.0,0.00053933,120]
[341107375,1730384163416,-1087.0,0.00053933,120]
[341107376,1730384163444,-421.20403312,0.00054528,120]
[341107377,1730384163474,-421.20403312,0.00055089,120]
[341107378,1730384163503,-200.0,0.00056,120]
[341107379,1730384163533,-511.0,0.00056933,120]
[341107380,1730384163562,-1087.0,0.00056933,120]
[341107381,1730384163590,-995402.03635924,0.0005869,120]
[341107382,1730384171423,-1853.0,0.00053933,120]
[341107383,1730384171448,-1415.964,0.00053933,120]
[341107384,1730384171474,-511.677,0.00056933,120]
[341107385,1730384171500,-414836.0,0.00057,120]
[341107386,1730384171526,-200.0,0.00058,120]
[341107387,1730384171551,-106763.11372305,0.0005869,120]
[341107388,1730384171576,-700.0,0.0005869,52]
[341107389,1730384171601,-700.0,0.0005869,52]
[341107390,1730384171628,-700.0,0.0005869,52]
[341107391,1730384171657,-700.0,0.0005869,52]
[341107392,1730384171693,-700.0,0.0005869,52]
[341107393,1730384171717,-700.0,0.0005869,62]
[341107394,1730384171741,-700.0,0.0005869,52]
[341107395,1730384171765,-404.76817904,0.0005869,52]
[341107396,1730384171790,-200.0,0.0005869,120]
[341107397,1730384171814,-7917.96095451,0.0005869,30]
[341107398,1730384171839,-12311.89623802,0.000588,120]
[341107399,1730384171865,-18531.47887823,0.000588,120]
[341107400,1730384171892,-156.96,0.000588,60]
[341107401,1730384171931,-156.96,0.000588,60]
[341107402,1730384171962,-156.96,0.000588,60]
[341107403,1730384171990,-156.96,0.000588,60]
[341107404,1730384172016,-145644.51595662,0.0005888,120]
[341107405,1730384172044,-557.32,0.00058904,120]
[341107406,1730384172070,-535.92,0.00058904,120]
[341107407,1730384172095,-10222.56,0.00058904,120]
[341107408,1730384172125,-1263.05,0.00058904,120]
[341107409,1730384172150,-630.17,0.00058904,120]
[341107410,1730384172186,-3436.22,0.00058904,120]
[341107411,1730384172211,-12977.59,0.00058962,120]
[341107412,1730384172235,-12977.59,0.00058962,120]
[341107413,1730384172259,-1000.0,0.00058999,120]
[341107414,1730384172286,-50000.0,0.00059,49]
[341107415,1730384172311,-5000.0,0.00059,120]
[341107416,1730384172336,-5000.0,0.00059,120]
[341107417,1730384172361,-5000.0,0.00059,120]
[341107418,1730384172385,-5000.0,0.00059,120]
[341107419,1730384172419,-2000.0,0.00059,120]
[341107420,1730384172444,-20000.0,0.00059,120]
[341107421,1730384172469,-20000.0,0.00059,120]
[341107422,1730384172494,-3652.677999,0.00059,120]
[341107423,1730384172518,-241.02,0.00059107,120]
[341107424,1730384172542,-150.0,0.00059118,120]
[341107425,1730384172566,-150.0,0.00059121,93]
[341107426,1730384172590,-150.0,0.00059121,93]
[341107427,1730384172614,-150.0,0.00059121,93]
[341107428,1730384172638,-150.0,0.00059121,93]
[341107429,1730384172669,-150.0,0.00059121,93]
[341107430,1730384172694,-160.1817405,0.00059121,93]
[341107431,1730384172717,-150.57638447,0.00059123,120]
[341107432,1730384172742,-500.0,0.00059123,120]
[341107433,1730384172768,-557.32,0.00059178,120]
[341107434,1730384172794,-535.92,0.00059178,120]
[341107435,1730384172819,-10222.56,0.00059178,120]
[341107436,1730384172845,-1263.05,0.00059178,120]
[341107437,1730384172870,-630.17,0.00059178,120]
[341107438,1730384172896,-3436.22,0.00059178,120]
[341107439,1730384172931,-163.33,0.00059178,60]
[341107440,1730384172956,-150.0,0.00059178,60]
[341107441,1730384172981,-150.0,0.00059178,60]
[341107442,1730384173007,-150.0,0.00059178,60]
[341107443,1730384173032,-150.0,0.00059178,60]
[341107444,1730384173058,-150.0,0.00059178,60]
[341107445,1730384173084,-150.0,0.00059178,60]
[341107446,1730384173109,-104968.33894656,0.000592,60]
[341107447,1730384212749,83638.17450572,0.00044694,61]
[341107449,1730384215984,164.71,0.00015342,2]
[341107450,1730384221427,300.0,0.00019725,2]
[341107451,1730384246272,-178.615,0.0003,2]
[341107452,1730384246293,-915.37517574,0.00041151,2]
[341107453,1730384401552,300.0,0.00019725,2]
[341107454,1730384402330,420.0,0.00021484,2]
[341107455,1730384598443,938.06034388,0.00044722,120]
[341107456,1730384600837,379.0,0.00044722,20]
[341107457,1730384603682,500.0,0.00024932,2]
[341107514,1730384666130,795.0,0.00044722,30]
[341107516,1730384708471,16528.61359192,0.00016,2]
[341107517,1730384708495,34558.63,0.00016,2]
[341107518,1730384708518,112537.07461863,0.00016,2]
[341107520,1730384712502,280.7751434,0.00044722,30]
[341107521,1730384714214,1066.36553345,0.00044722,30]
[341107522,1730384729276,1063.55721446,0.00044722,30]
[341107523,1730384730514,3537.96490144,0.000101,2]
[341107524,1730384734665,932.3994461,0.00044722,20]
[341107525,1730384738464,285.96320129,0.00044722,120]
[341107526,1730384747756,185.5027562,0.00044722,120]
[341107527,1730384757455,947.55130889,0.00044722,120]
[341107528,1730384777082,341.18983428,0.00044722,120]
[341107530,1730384801323,155.77,0.00015342,2]
[341107531,1730384803368,4310.61045842,0.00012666,2]
[341107532,1730384811181,1016.35085721,0.00044722,120]
[341107533,1730384825911,271.00689164,0.00044722,120]
[341107534,1730384831290,215.24609571,0.00044722,30]
[341107535,1730384839366,781.82026579,0.00044722,120]